Cogmind - Beta 10 X2 --- EXPLORER MODE // 2020.07.18 @ 22:10:31 // Experiment/BattleRoyale Player: Minty Result: Core destroyed Performance ------------- Evolutions (0) 0 Regions Visited (0) 0 Robots Destroyed (1) 5 Value Destroyed (500) 500 Prototype IDs (0) 0 Alien Tech Used (0) 0 Bonus (0) 0 TOTAL SCORE: 505 Bonus ------- None Cogmind --------- Core Integrity 0/250 Matter 244/300 Energy 35/200 System Corruption 2% Temperature Cool (821) Movement Treading (145) Location -5/Wartown Parts ------- > --- POWER (3) -------- Light Deuterium Engine Light Nuclear Core > --- PROPULSION (4) --- Biometal Heavy Treads > --- UTILITY (6) ------ Weapon Cycler Advanced Weapon Cycler Reaction Control System Makeshift Kinetic Plating > --- WEAPON (3) ------- Enhanced Nova Cannon Gauss Rifle > --- INVENTORY (4) ---- (None) Peak State ------------ > --- POWER ------------ Light Deuterium Engine Light Nuclear Core > --- PROPULSION ------- Biometal Heavy Treads Advanced Heavy Siege Treads > --- UTILITY ---------- Kinecellerator Weapon Cycler Advanced Weapon Cycler Improved Maneuvering Thrusters Reaction Control System Makeshift Kinetic Plating > --- WEAPON ----------- Enhanced Nova Cannon Gauss Rifle Heavy Battle Rifle > --- INVENTORY -------- (None) [Rating: 91] Favorites ----------- Power Light Deuterium Engine Engine Light Deuterium Engine Power Core Light Nuclear Core Propulsion Biometal Heavy Treads Treads Biometal Heavy Treads Utility Weapon Cycler Device Weapon Cycler Protection Makeshift Kinetic Plating Weapon Enhanced Nova Cannon Energy Cannon Enhanced Nova Cannon Ballistic Gun Gauss Rifle Build | -5 ------- Run | Tow Slots Evolved . | . Power . | . Propulsion . | . Utility . | . Weapon . | . Parts Attached . | . Power . | . Engine . | . Core . | . Reactor . | . Propulsion . | . Treads . | . Leg . | . Wheel . | . Hover . | . Flight . | . Utility . | . Device . | . Storage . | . Processor . | . Hackware . | . Protection . | . Artifact . | . Weapon . | . Energy Gun . | . Energy Cannon . | . Ballistic Gun . | . Ballistic Cannon . | . Launcher . | . Special Weapon . | . Impact Weapon . | . Slashing Weapon . | . Piercing Weapon . | . Special Melee Weapon . | . Unidentified Prototypes . | . Parts Lost . | . Power . | . Propulsion . | . Utility . | . Weapon . | . Highest Loss Streak . | . Average Slot Usage (%) 78 | 78 Engine 6 | 6 Core 6 | 6 Treads 12 | 12 Device 25 | 25 Protection 6 | 6 Energy Cannon 6 | 6 Ballistic Gun 12 | 12 Naked Turns . | . Heaviest Build 49 | 49 Greatest Support 155 | 155 Greatest Overweight (x) . | . Average Overweight (x) . | . Largest Inventory Capacity 4 | 4 Average Capacity 4 | 4 Most Carried . | . Average Carried . | . Final Capacity 4 | 4 Final Carried . | . Class Distribution -------------------- 100% | Hacker-Tank Dominant Class ---------------- Hacker-Tank | -5/Wartown Resources | -5 ----------- Run | Tow Matter Collected . | . Remotely . | . Salvage Created 46 | 46 Parts . | . Haulers Intercepted . | . Recyclers Shooed . | . Parts Field Recycled . | . Retrieved Matter . | . Parts Self-Destructed . | . Prevented . | . Kills | -5 ------- Run | Tow Combat Hostiles Destroyed 1 | 1 Guns 1 | 1 Classes Destroyed 1 | 1 Player 1 | 1 Best Kill Streak 1 | 1 Combat Bots Only 1 | 1 Max Kills in Single Turn 1 | 1 Gunslinging . | . Exploded . | . Melee . | . Uniques/NPCs Destroyed . | . Combat | -5 -------- Run | Tow Damage Taken 429 | 429 Core 284 | 284 Absorbed by Shields . | . Redirected to Core 2558 | 2558 Core Remaining (%) . | . Volleys Fired 12 | 12 Largest 3 | 3 Hottest 181 | 181 Shots Fired 26 | 26 Gun 16 | 16 Cannon 10 | 10 Launcher . | . Special . | . Kinetic 16 | 16 Thermal 10 | 10 Explosive . | . Electromagnetic . | . Robot Hit Streak 21 | 21 Robot Miss Streak 1 | 1 Penetration Max . | . Secondary Targets . | . Shots Hit Robots 25 | 25 Core Hits 1 | 1 Critical Hits . | . Critical Kills . | . Critical Parts Destroyed . | . Melee Attacks . | . Impact . | . Slashing . | . Piercing . | . Sneak Attacks . | . Combat Hostiles . | . Follow-up Attacks . | . Damage Inflicted 762 | 762 Guns 329 | 329 Cannons 429 | 429 Explosions . | . Melee . | . Ramming 4 | 4 Kinetic 329 | 329 Thermal 429 | 429 Explosive . | . Electromagnetic . | . Impact . | . Slashing . | . Piercing . | . Highest Corruption 2 | 2 Average Corruption 1 | 1 Corruption Purged . | . Effects 1 | 1 Targeting Errors 1 | 1 Overload Shots . | . Overflow Damage . | . Projectiles . | . Explosions . | . Melee . | . Knockbacks . | . Impact . | . Kinetic . | . Secondary . | . Self-Inflicted Damage . | . Shots . | . Rammed 1 | 1 Targets Rammed 1 | 1 Kicked . | . Crushed . | . Highest Temperature 1217 | 1217 Average Temperature 713 | 713 Received Heat Transfer 36 | 36 Effects 41 | 41 Shutdowns 11 | 11 Energy Bleed 3 | 3 Interference 3 | 3 Matter Decay 3 | 3 Short Circuit 3 | 3 Damage (minor) 4 | 4 Damage (major) 10 | 10 Damage (core) 4 | 4 Siege Activations . | . Robots Corrupted . | . Combat Hostiles . | . Parts Fried . | . Impact Corruptions . | . Robots Melted . | . Combat Hostiles . | . Parts Melted 5 | 5 Heat Transferred 90 | 90 Parts Sabotaged . | . Parts Stolen . | . Parts Stripped . | . Power Chain Reactions . | . Missiles Intercepted . | . Alert | -5 ------- Run | Tow Peak Influence . | . Average Influence . | . Maximum Alert Level . | . Low Security (%) . | . Level 1 . | . Level 2 . | . Level 3 . | . Level 4 . | . Level 5 . | . High Security . | . Max Security . | . Squads Dispatched . | . Investigation . | . Extermination . | . Reinforcement . | . Assault . | . Garrison . | . Intercept . | . Construction Impeded . | . Haulers Reinforced . | . Stealth | -5 --------- Run | Tow Distress Signals . | . Communications Jammed . | . Distress Signals . | . Times Spotted 3 | 3 Peak Tracking Total 2 | 2 Tactical Retreats . | . Traps | -5 ------- Run | Tow Traps Triggered . | . Indirectly . | . Trap Hack Attempts . | . Triggered . | . Disarmed . | . Reprogrammed . | . Reused . | . Traps Extracted . | . Installed . | . Triggered . | . Machines | -5 ---------- Run | Tow Machines Disabled . | . Max in Single Turn . | . Machines Sabotaged . | . Garrisons Compromised . | . Overloaded Fab Kills . | . Fab Network Shutdowns . | . Hacking | -5 --------- Run | Tow Machines Accessed . | . Terminals . | . Fabricators . | . Repair Stations . | . Recycling Units . | . Scanalyzers . | . Garrison Access . | . Total Hacks . | . Successful . | . Failed . | . Catastrophic . | . Database Lockouts . | . Manual . | . Terminals . | . Fabricators . | . Repair Stations . | . Recycling Units . | . Scanalyzers . | . Garrison Access . | . Terminal Hacks . | . Fabricator Hacks . | . Repair Station Hacks . | . Recycling Unit Hacks . | . Scanalyzer . | . Garrison Access Hacks . | . Unauthorized Hacks . | . Terminals . | . Fabricators . | . Repair Stations . | . Recycling Units . | . Scanalyzers . | . Garrison Access . | . Data Cores Recovered . | . Used . | . Hacking Detections . | . Full Trace Events . | . Feedback Events . | . Feedback Blocked . | . Robot Schematics Acquired . | . Robots Built . | . Matter . | . Time . | . Total Robot Build Rating . | . Part Schematics Acquired . | . Parts Built . | . Matter . | . Time . | . Total Part Build Rating . | . Parts Repaired . | . Time . | . Parts Recycled . | . Recycled Matter . | . Retrieved Matter . | . Retrieved Components . | . Parts Scanalyzed . | . Part Schematics Acquired . | . Parts Damaged . | . Bothacking | -5 ------------ Run | Tow Used RIF Installer . | . Robots Hacked . | . Non-combat . | . Combat . | . Robot Hacks Applied . | . Relay Couplers Released . | . Robots Rewired . | . Allies Hacked . | . Hacks Repelled . | . Allies | -5 -------- Run | Tow Total Allies . | . Largest Group . | . Highest-Rated Group . | . Highest-Rated Ally . | . Total Orders . | . Ally Attacks . | . Total Damage . | . Kills . | . Allies Corrupted . | . Allies Melted . | . Intel | -5 ------- Run | Tow Robot Analysis Total . | . Derelict Logs Recovered . | . Drone Launches . | . Drone Recoveries . | . Exploration | -5 ------------- Run | Tow Turns Passed 67 | 67 Spaces Moved 21 | 21 Core . | . Treads 21 | 21 Legs . | . Wheels . | . Hover . | . Flight . | . Fastest Speed 145 | 145 Average Speed 149 | 149 Slowest Speed 152 | 152 Overloaded Moves . | . Propulsion Burnouts . | . Robots Hopped . | . Cave-ins Triggered . | . Exploration Rate (%) 1 | 1 Regions Visited 1 Branch Regions 1 Pre-discovered Areas . | . Known Exits Taken . | . Unknown Exits Taken . | . Scrap Searched . | . Spaces Dug . | . Terrain Destroyed . | . Melee . | . Projectile . | . AOE . | . Actions | -5 --------- Run | Tow Total 47 | 47 Wait 9 | 9 Move 21 | 21 Hop . | . Pick Up . | . Fast Attach . | . Attach . | . Detach . | . Swap . | . Drop 4 | 4 Fire 12 | 12 Melee . | . Ram . | . Kick . | . Crush 1 | 1 Escape Stasis . | . Rewire . | . Trap . | . Miscellaneous . | . Route ------- -5/Wartown History --------- Turn | Location | Event 39 | -5/Wartown | Core integrity fell below 50% 56 | -5/Wartown | Core integrity fell below 20% 69 | -5/Wartown | Core destroyed Last Messages --------------- 00056_ Overheating: Core damaged (-30). 00057_ Power failure, Lgt. Deuterium Engine shutdown. 00057_ Overheating: Hvy. Battle Rifle damaged (-18). 00058_ Power failure, Lgt. Nuclear Core shutdown. 00058_ Overheating: Energy bleed (-3). 00060_ GroundVortex-2 removes Prototype Reactor. 00061_ Hvy. Battle Rifle permanently disabled. 00061_ Overheating: Short circuit. 00063_ Overheating: Energy bleed (-3). 00065_ Power failure, Lgt. Deuterium Engine shutdown. 00066_ Overheating: Core damaged (-37). 00066_ Used Protomatter to restore core integrity (+30, depleted) 00067_ Overheating: Mak. Kinetic Plating damaged (-31). 00067_ Overheating: Gauss Rifle damaged (-10). 00067_ Dropped Broken Hvy. Battle Rifle. 00067_ GroundVortex-2 removes Deuterium Engine. 00067_ Dropped Broken Imp. Maneuvering Thrusters. 00068_ GroundVortex-2 removes Hrd. Medium Armor Plating. 00068_ Dropped Broken Adv. Heavy Siege Treads. 00069_ Overheating: Core damaged (-35). Map ----- +----------------------------------------------------+ | ?????????????????????????????????????????????????? | | ?????????????????????????????????????????????????? | | ?????????????????????????????????????????????????? | | ?????????????????????????????????????????????????? | | ?????????????????????????????????????????????????? | | ?????????????????????????????????????????????????? | | ?????????????????????????????????????????????????? | | ?????????????????????????????????????????????????? | | ?????????????????????????????????????????????????? | | ?????????????????????????????????????????????????? | | ????????????????????????? ??????????????? | | ???????????????????????? @ ????????????? | | ???????????????????????? ] #???????????? | | ????????????????????????# #???????????? | | ????????????????????????# #???????????? | | ?????????????? ?????????+ = #???????????? | | ?????????????# ????????# #???????????? | | ?????????????+ =???????# #???????????? | | ?????????????# ??????# #???????????? | | ?????????????# ###### +???????????? | | ?????????????# #???????###?? | | ???????????### ######## ?? | | ??????????? / ? | | ?????????? = ? | | ?????????? *% ? | | ?????????? @@ [ ? | | ?????????? ! ?? | | ?????????? """??? | | ???????????+#####+#### ! """??? | | ?????????????????????# / """ "" | | ?????????????????????+ = | | ?????????????????????# """ ?? | | ?????????????????????# ###;#+#### """??? | | ?????????????????????######+#### +? """??? | | ???????????????????????????????# """ #?? ???? | | ???????????????????????????????# """ +????????? | | ???????????????????????????????# """ ![ #????????? | | ???????????????????????????????# #????????? | | ???????????????????????????????# """ #????????? | | ???????????????????????????????# """ #????????? | | ???????????????????????????????# """ #????????? | | ???????????????????????????????# #????????? | | ???????????????????????????????##########????????? | | ?????????????????????????????????????????????????? | | ?????????????????????????????????????????????????? | | ?????????????????????????????????????????????????? | | ?????????????????????????????????????????????????? | | ?????????????????????????????????????????????????? | | ?????????????????????????????????????????????????? | | ?????????????????????????????????????????????????? | +----------------------------------------------------+ Best States ------------- Heat Dissipation 25 Energy Generation 23 Energy Capacity 200 Matter Stores 300 Matter Capacity 300 Sight Range 16 Terrain Scan Density 10 Armor Coverage 100 Resistance: KI 45 Resistance: TH 35 Resistance: EX 35 Resistance: EM 35 Resistance: I 35 Resistance: S 35 Resistance: P 35 Weapon Cycling 30 Evasion (%) 40 Recoil Reduction 4 Offensive Hacking 20 Item Schematics ----------------- None Robot Schematics ------------------ None Fabricated ------------ Nothing Alien Tech Used ----------------- None Achievements -------------- None Challenges ------------ None Game ------ Seed BarragePulseCharger Manual? 0 Play Time 00:02:56 Cumulative 211.6 hours Start 2020.07.18 @ 22:09:00 End 2020.07.18 @ 22:10:31 Sessions 1 Manual Loads 0 Difficulty Explorer Special Mode Experiment/BattleRoyale Game No. 125 Rogue 0 Adventurer 44 Explorer 81 Win Type - Total 4 Types 3/0/1/0/0/0/0 Lore% 53 Gallery% 79 Achievement% 58 Wizard Run 0 Options --------- ASCII 0 Keyboard 0 Movement Mouse Keybinds 0 Fullscreen 1 Font 18/TerminusBold Map View 76x50 Tactical HUD 1 Map Filters NONE Filters SATURATION(100) Steam 1 RUN: 3f64d026-7a15-4c64-b2e3-a8bfee0ce1cd